bitfinex/quotes_ETHUSD_20240707
["timestamp","ask_amount","ask_price","bid_price","bid_amount"]
[1720357346309,0.10162416,3013.3,3012.6,0.4]
[1720357346514,0.35986242,3013.2,3012.6,0.4]
[1720357346749,0.10160931,3013.1,3012.6,0.4]
[1720357350651,2.3058,3013.5,3012.6,0.4]
[1720357350652,2.3058,3013.5,3012.6,3.4]
[1720357350816,0.10187652,3013.0,3012.6,3.4]
[1720357351145,0.1018691,3012.9,3012.6,3.4]
[1720357351315,2.3058,3013.5,3012.6,0.4]
[1720357351518,0.44866619,3013.4,3012.6,0.4]
[1720357351718,0.55057241,3013.4,3012.6,0.4]
[1720357352648,2.3058,3013.3,3012.6,0.4]
[1720357352852,2.40768513,3013.3,3012.6,0.4]
[1720357355726,2.3058,3013.2,3012.6,0.4]
[1720357355926,3.59888513,3013.3,3012.6,0.4]
[1720357355927,2.3058,3013.0,3012.6,0.4]
[1720357356129,0.10179789,3012.9,3012.6,0.4]
[1720357356329,2.3058,3012.8,3012.6,0.4]
[1720357356627,0.10174275,3012.7,3012.6,0.4]
[1720357356830,2.3058,3012.8,3012.6,0.4]
[1720357357021,0.33232275,3012.7,3012.6,0.4]
[1720357358447,0.10174275,3012.7,3012.6,0.4]
[1720357358959,0.1015672,3012.7,3012.6,0.4]
[1720357359136,2.4706,3013.2,3012.6,0.4]
[1720357359566,0.10161242,3013.1,3012.6,0.4]
[1720357361745,0.10181006,3013.0,3012.6,3.4]
[1720357361934,0.10181006,3013.0,3012.6,3.98115]
[1720357362141,2.4706,3013.5,3012.6,3.98115]
[1720357362339,0.10180263,3012.9,3012.6,3.4]
[1720357362538,0.10179097,3012.8,3012.6,3.4]
[1720357362740,0.10179097,3012.8,3012.6,0.4]
[1720357362947,3.497,3013.2,3012.6,0.4]
[1720357363344,0.10180577,3013.1,3012.6,0.4]
[1720357363694,5.9676,3012.9,3012.6,0.4]
[1720357363846,0.35988058,3013.0,3012.6,0.4]
[1720357363847,3.497,3012.7,3012.6,0.4]
[1720357364188,3.497,3012.7,3010.6,2.3251]
[1720357364189,3.497,3012.2,3010.7,0.33275679]
[1720357364474,5.29260936,3012.1,3010.6,2.32509]
[1720357364677,4.14316142,3012.1,3010.6,2.66422413]
[1720357365348,4.14316142,3012.1,3010.6,2.32509]
[1720357365779,4.14316142,3012.1,3010.7,3.0]
[1720357366080,4.14316142,3012.1,3010.7,5.32502]
[1720357366751,4.14316142,3012.1,3010.7,3.0]
[1720357366978,4.14316142,3012.1,3010.6,3.0]
[1720357367652,4.14316142,3012.1,3010.6,5.3251]
[1720357368755,4.14316142,3012.1,3010.6,5.32506]
[1720357369750,4.14316142,3012.1,3010.7,2.32503]
[1720357369947,3.497,3011.9,3010.8,0.765009]
[1720357370181,0.10125896,3011.8,3010.8,3.765009]
[1720357372898,0.10125896,3011.8,3010.8,6.15634968]
[1720357373098,0.10125896,3011.8,3011.0,2.32479]
[1720357373397,2.18086192,3012.2,3011.0,2.32479]
[1720357373398,2.18086192,3012.2,3011.1,0.06641208]
[1720357373583,2.18086192,3012.2,3011.1,0.232479]
[1720357373764,0.10129565,3012.1,3011.1,3.232479]
[1720357373964,5.67786192,3012.2,3011.1,3.232479]
[1720357374279,0.10092431,3012.1,3011.1,3.232479]
[1720357374479,0.10092431,3012.1,3011.2,0.56236833]
[1720357378178,5.67786192,3012.5,3011.2,0.56236833]
[1720357378576,0.09990906,3012.2,3011.2,0.56236833]
[1720357378879,0.09990906,3012.2,3011.2,0.62877746]
[1720357379099,0.09990906,3012.2,3011.2,3.62877746]
[1720357379300,0.09990906,3012.2,3011.3,0.61859265]
[1720357380400,0.09990906,3012.2,3011.7,0.2]
[1720357383813,5.9436,3012.1,3011.7,0.2]
[1720357384114,0.09996329,3012.0,3011.7,0.2]
[1720357384620,0.09996329,3012.0,3011.7,0.4]
[1720357385483,5.9436,3012.4,3011.7,0.4]
[1720357385684,0.09995874,3011.9,3011.7,0.4]
[1720357385895,0.81244619,3012.3,3011.7,0.4]
[1720357386095,0.0999513,3011.8,3011.7,0.4]
[1720357386293,2.4466,3012.4,3011.7,0.4]
[1720357386497,0.0999513,3011.8,3011.7,0.4]
[1720357386691,2.4466,3012.4,3011.7,0.4]
[1720357386891,0.0999513,3011.8,3011.7,0.4]
[1720357387097,2.4466,3012.4,3011.7,0.4]
[1720357387982,0.09998846,3012.3,3011.7,0.4]
[1720357388716,2.18086192,3012.5,3011.8,4.65482037]
[1720357389022,2.18086192,3012.5,3011.9,3.0]
[1720357389194,0.10011107,3012.4,3011.9,3.0]
[1720357390208,0.10011107,3012.4,3011.9,3.798842]
[1720357390409,2.18086192,3012.8,3011.9,3.798842]
[1720357390907,0.10019093,3012.7,3011.9,3.798842]
[1720357391096,2.4466,3012.6,3011.9,3.0]
[1720357391298,2.54680941,3012.6,3011.7,0.4]
[1720357392228,6.04380941,3012.6,3011.7,0.4]
[1720357395397,2.54680941,3012.6,3011.7,0.4]
[1720357395722,6.04380941,3012.6,3011.7,3.4]
[1720357395928,0.60438094,3012.5,3011.7,0.4]
[1720357396326,0.10012544,3012.4,3011.7,0.4]
[1720357397845,2.4466,3012.6,3011.7,0.4]
[1720357397990,0.10011801,3012.3,3011.7,0.4]
[1720357398191,2.4466,3012.6,3011.7,0.4]
[1720357398434,0.24466,3012.5,3011.7,0.4]
[1720357398619,2.4466,3012.6,3011.7,0.4]
[1720357398819,0.10013287,3012.5,3011.7,0.4]
[1720357402121,0.10013287,3012.5,3011.7,2.7049]
[1720357402431,0.10013287,3012.5,3011.8,3.06640021]
[1720357402795,2.18086192,3012.8,3011.8,5.39054021]
[1720357403032,0.09806759,3012.4,3011.9,2.88395402]
[1720357403347,0.09806016,3012.3,3012.0,3.0]
[1720357403829,2.18086192,3012.8,3012.0,3.0]
[1720357404330,0.09812502,3012.7,3011.9,2.3049]
[1720357406821,2.3308,3012.6,3011.8,3.0]
[1720357407028,2.3308,3012.6,3011.7,3.4]
[1720357407222,0.09809455,3012.5,3011.7,3.4]
[1720357408510,0.09809455,3012.5,3011.7,0.4]
[1720357408936,5.8278,3012.4,3011.7,0.4]
[1720357409234,0.59258945,3012.3,3011.7,0.4]
[1720357409437,0.69066974,3012.3,3011.7,0.4]
[1720357409605,2.3308,3012.1,3011.7,0.4]
[1720357409805,5.8278,3012.1,3011.7,0.4]
[1720357410039,0.098058,3012.0,3011.7,0.4]
[1720357410620,5.8278,3011.9,3011.7,0.4]
[1720357410939,7.07576731,3011.8,3011.7,0.4]
[1720357411105,9.67695622,3011.8,3011.7,0.4]
[1720357413253,8.52703205,3011.8,3011.7,0.4]
[1720357413408,9.67683882,3011.8,3011.7,0.4]
[1720357413609,7.95564091,3011.8,3011.7,0.4]
[1720357414409,6.80556643,3011.8,3011.7,0.4]
[1720357414612,6.80556643,3011.8,3010.2,0.33360997]
[1720357414846,3.497,3011.6,3010.3,0.333361]
[1720357415150,0.09783339,3011.5,3010.3,0.333361]
[1720357416029,2.3308,3011.4,3010.3,0.333361]
[1720357416217,0.09780008,3011.3,3010.3,0.333361]
[1720357418844,0.09780008,3011.3,3010.1,3.0]
[1720357419060,3.497,3011.1,3009.7,2.3936]
[1720357419226,5.93839177,3011.0,3009.7,2.3936]
[1720357426758,5.93839177,3011.0,3009.6,3.0]
[1720357426759,2.29,3010.9,3009.6,3.0]
[1720357427049,2.29,3010.7,3009.7,0.3]
[1720357427251,0.0924592,3010.6,3009.5,3.0]
[1720357427554,0.0924592,3010.6,3009.4,5.32597]
[1720357428150,0.0924592,3010.6,3009.5,2.3576]
[1720357428326,0.0924592,3010.6,3009.5,7.68355]
[1720357428532,2.29,3010.7,3009.6,1.068355]
[1720357428716,2.29,3010.7,3009.6,4.068355]
[1720357428919,0.09242597,3010.6,3009.6,4.068355]
[1720357429655,2.29,3010.7,3009.6,4.068355]
[1720357430360,2.29,3010.7,3009.7,2.3258]
[1720357430557,2.29,3010.7,3009.8,0.6394155]
[1720357430733,2.29,3010.7,3009.9,0.06643765]
[1720357432559,2.29,3010.7,3009.8,3.6394155]
[1720357433375,2.29,3010.7,3009.9,0.06643761]
[1720357435279,2.29,3010.7,3009.8,3.6394155]
[1720357435481,2.73708619,3010.7,3009.8,0.6394155]
[1720357435649,0.0924865,3010.6,3009.6,5.32587]
[1720357437884,0.0924865,3010.6,3009.6,3.0]
[1720357438884,0.0924865,3010.6,3009.6,5.32587]
[1720357440386,2.308,3010.5,3009.3,0.3330755]
[1720357440561,2.308,3010.5,3009.1,2.32622]
[1720357440762,2.308,3010.3,3009.2,0.232622]
[1720357441185,0.09240049,3010.2,3009.2,0.232622]
[1720357441395,0.09240049,3010.2,3008.9,4.6916]
[1720357441687,2.308,3010.1,3008.9,5.02077758]
[1720357441987,0.09229625,3010.0,3008.9,5.02077758]
[1720357442354,2.308,3010.1,3009.0,2.32632]
[1720357442713,2.308,3010.4,3009.2,2.3652]
[1720357442997,2.18086192,3010.9,3009.9,2.32565]
[1720357442998,0.09228653,3010.0,3009.9,2.32565]
[1720357443160,2.308,3010.5,3009.6,5.32584]
[1720357443363,2.308,3010.5,3009.7,0.55]
[1720357443557,0.08913489,3010.4,3009.6,3.0]
[1720357443757,0.08913489,3010.4,3009.6,0.769119]
[1720357443981,0.08913489,3010.4,3009.6,3.769119]
[1720357444327,0.08913489,3010.4,3009.6,3.0]
[1720357444509,0.08913489,3010.4,3009.3,3.0]
[1720357445152,2.308,3010.5,3009.3,3.0]
[1720357445467,0.08926051,3010.4,3009.5,2.32596]
[1720357445665,2.308,3010.5,3009.6,2.39232112]
[1720357445866,0.08926051,3010.4,3009.7,0.53923211]
[1720357446167,2.18086192,3010.6,3009.9,2.32563]
[1720357446366,0.08925307,3010.3,3009.9,2.32563]
[1720357446550,2.308,3010.8,3009.9,5.32563]
[1720357446754,2.75688619,3010.8,3009.9,5.32563]
[1720357446951,0.08929433,3010.7,3009.9,3.0]
[1720357447354,0.08929433,3010.7,3009.8,3.0]
[1720357447559,0.08929433,3010.7,3009.8,0.06644139]
[1720357447754,0.08929433,3010.7,3009.8,2.39216139]
[1720357447955,0.08929433,3010.7,3009.9,0.29313935]
[1720357448290,2.308,3010.8,3009.9,3.0]
[1720357448464,0.08929433,3010.7,3009.9,3.0]
[1720357448784,0.08929433,3010.7,3009.8,2.32573]
[1720357448985,0.08929433,3010.7,3009.8,3.0]
[1720357449164,2.308,3010.8,3009.8,3.0]
[1720357449369,2.308,3010.6,3009.7,3.0]
[1720357449565,2.308,3010.6,3009.6,3.0]
[1720357449887,0.08927945,3010.5,3009.6,3.0]
[1720357450409,0.08927945,3010.5,3009.4,5.3652]
[1720357450688,0.23972794,3010.4,3009.5,0.55]
[1720357450882,0.23972794,3010.4,3009.5,3.55]
[1720357450883,0.08925675,3010.3,3009.5,3.55]
[1720357451381,0.08925675,3010.3,3009.5,5.87596]
[1720357451690,2.308,3010.6,3009.6,2.39232109]
[1720357451899,2.308,3010.6,3009.6,5.39232109]
[1720357452106,2.308,3010.6,3009.7,3.45258811]
[1720357452305,2.308,3010.6,3009.8,3.0]
[1720357453203,4.48886192,3010.9,3010.0,2.3652]
[1720357453615,0.08929395,3010.8,3009.9,0.06643643]
[1720357453797,0.08929395,3010.8,3009.8,5.32571]
[1720357453993,2.308,3010.7,3009.8,3.0]
[1720357454193,2.308,3010.7,3009.7,2.32581]
[1720357454502,0.08926506,3010.6,3009.7,5.32581]
[1720357454924,0.08926506,3010.6,3009.7,2.32581]
[1720357455274,0.08926506,3010.6,3009.8,2.32573]
[1720357455479,0.08926506,3010.6,3009.9,0.53159036]
[1720357455680,2.308,3010.7,3009.9,3.53159036]
[1720357456291,2.308,3010.7,3009.9,3.465154]
[1720357457011,2.308,3010.7,3010.0,0.06643635]
[1720357458303,2.308,3010.7,3009.9,3.465154]
[1720357459949,0.0893252,3010.6,3010.2,2.32542]
[1720357460225,0.0893252,3010.6,3010.3,0.0664288]
[1720357460380,2.3276,3011.1,3010.3,2.3917488]
[1720357460577,0.08933506,3010.5,3010.3,2.3917488]
[1720357460778,2.3276,3011.1,3010.3,2.3917488]
[1720357461016,0.08932762,3010.4,3010.3,2.3917488]
[1720357461327,2.3276,3011.1,3010.3,1.07596768]
[1720357461519,2.3276,3011.1,3010.6,0.2]
[1720357461717,0.08944429,3011.0,3010.6,0.2]
[1720357465580,0.08944429,3011.0,3010.9,0.2]
[1720357468488,2.41704429,3011.0,3010.9,0.2]
[1720357469685,2.41704429,3011.0,3010.9,0.4]
[1720357469887,2.65874872,3011.0,3010.9,0.4]
[1720357471632,6.15574872,3011.0,3010.9,0.4]
[1720357473288,2.65874872,3011.0,3010.9,0.4]
[1720357473827,2.65874872,3011.0,3010.9,0.6]
[1720357475993,0.08944429,3011.0,3010.9,0.6]
[1720357476330,2.3276,3011.3,3010.9,0.6]
[1720357476488,0.0895221,3011.0,3010.9,0.6]
[1720357476689,2.3276,3011.3,3010.9,0.6]
[1720357476889,0.08953697,3011.2,3010.9,0.6]
[1720357477192,2.3276,3011.3,3010.9,0.6]
[1720357477193,0.2417137,3011.1,3010.9,0.6]
[1720357477502,0.33124323,3011.1,3010.9,0.6]
[1720357477929,0.33124323,3011.1,3010.9,0.8]
[1720357487844,0.08952953,3011.1,3010.9,0.8]
[1720357488344,0.0895192,3011.0,3010.9,0.8]
[1720357488850,5.62693244,3011.5,3010.9,0.8]
[1720357489130,1.15006372,3011.4,3010.9,0.8]
[1720357489332,1.91723966,3011.3,3010.9,0.8]
[1720357489630,0.76716744,3011.3,3010.9,0.8]
[1720357493505,1.15009793,3011.2,3010.9,0.8]
[1720357493699,0.76716744,3011.3,3010.9,0.8]
[1720357493700,0.08948505,3011.1,3010.9,0.8]
[1720357493939,0.67769962,3011.3,3010.9,0.8]
[1720357494124,0.41274013,3011.2,3010.9,0.8]
[1720357494325,0.50224826,3011.2,3010.9,0.8]
[1720357494532,0.08950813,3011.2,3010.9,0.8]
[1720357494735,0.67769962,3011.3,3010.9,0.8]
[1720357494936,0.08950423,3011.2,3010.9,0.8]
[1720357495133,1.72485563,3011.4,3010.9,0.8]
[1720357495338,0.08952829,3011.3,3010.9,3.0654]
[1720357495504,0.08952829,3011.3,3011.0,3.0]
[1720357495703,0.08952829,3011.3,3010.9,4.10654]
[1720357496627,2.18086192,3011.5,3010.9,4.10654]
[1720357496822,0.08953864,3011.2,3010.9,3.8]
[1720357497136,0.08950385,3011.1,3010.9,3.8]
[1720357497439,1.7252764,3011.4,3010.9,0.8]
[1720357497732,2.46,3011.2,3010.9,0.8]
[1720357497903,4.1852764,3011.2,3010.9,0.8]
[1720357498107,0.08656832,3011.1,3010.9,0.8]
[1720357498307,0.25465683,3011.0,3010.9,0.8]
[1720357498509,0.34121772,3011.0,3010.9,0.8]
[1720357500638,3.02231326,3011.0,3010.9,0.8]
[1720357502307,4.74766448,3011.0,3010.9,0.8]
[1720357502513,2.96216207,3011.0,3010.9,0.8]
[1720357503645,1.81191211,3011.0,3010.9,0.8]
[1720357503828,0.08656089,3011.0,3010.9,0.8]
[1720357504140,2.18086192,3011.5,3010.9,0.8]
[1720357504453,0.08616137,3011.4,3010.9,0.8]
[1720357505541,0.08616137,3011.4,3011.0,2.4015]
[1720357505710,0.08616137,3011.4,3011.1,0.32015]
[1720357505909,0.08616137,3011.4,3011.1,3.32015]
[1720357508362,0.08616137,3011.4,3011.1,3.52015]
[1720357508868,0.08616137,3011.4,3011.1,3.2]
[1720357509048,0.08616137,3011.4,3011.1,0.2]
[1720357509245,1.72517747,3011.7,3011.1,0.2]
[1720357509456,0.08347733,3011.3,3011.1,0.2]
[1720357509757,0.0834699,3011.2,3011.1,0.2]
[1720357509957,1.72517747,3011.7,3011.1,0.2]
[1720357510171,0.82430358,3011.6,3011.1,0.2]
[1720357510853,2.46,3011.5,3011.1,0.2]
[1720357511270,0.08348477,3011.4,3011.1,0.2]
[1720357512369,0.08348477,3011.4,3011.1,0.4]
[1720357512576,4.65211778,3011.3,3011.1,0.4]
[1720357512868,0.64602453,3011.2,3011.1,0.4]
[1720357513068,0.72951552,3011.2,3011.1,0.4]
[1720357513870,0.08349099,3011.2,3011.1,0.4]
[1720357514558,0.74080394,3011.6,3011.1,0.4]
[1720357514739,0.08339804,3011.5,3011.1,0.4]
[1720357515838,5.962,3011.4,3011.1,0.4]
[1720357516077,0.6045398,3011.3,3011.1,0.4]
[1720357516372,0.68796909,3011.3,3011.1,0.6]
[1720357517168,0.08342929,3011.3,3011.1,0.6]
[1720357517491,2.46550778,3011.6,3011.1,0.6]
[1720357517773,1.15002737,3011.5,3011.1,0.6]
[1720357518068,0.0834067,3011.5,3011.1,0.6]
[1720357518861,1.15005793,3011.4,3011.1,0.6]
[1720357519065,5.31011054,3011.5,3011.1,0.6]
[1720357519250,0.083412,3011.3,3011.1,0.6]
[1720357519439,0.60509145,3011.4,3011.1,0.6]
[1720357519641,0.08338727,3011.2,3011.1,0.6]
[1720357519841,0.60509145,3011.4,3011.1,0.6]
[1720357520265,0.0833947,3011.3,3011.1,0.6]
[1720357520672,0.241319,3011.2,3011.1,0.6]
[1720357520889,0.0833947,3011.3,3011.1,0.6]
[1720357521185,7.03143366,3011.2,3011.1,0.6]
[1720357521357,10.85151483,3011.2,3011.1,0.6]
[1720357522559,8.78173231,3011.2,3011.1,0.6]
[1720357522761,10.85151483,3011.2,3011.1,0.6]
[1720357522989,12.52962746,3011.2,3011.1,0.6]
[1720357523972,12.52825385,3011.2,3011.1,0.6]
[1720357524173,12.5282538,3011.2,3011.1,0.6]
[1720357525610,10.45995494,3011.2,3011.1,0.6]
[1720357525794,9.64935066,3011.2,3011.1,0.6]
[1720357526193,10.46008153,3011.2,3011.1,0.6]
[1720357526399,9.64935066,3011.2,3011.1,0.6]
[1720357526597,10.46008479,3011.2,3011.1,0.6]
[1720357526907,9.25965629,3011.2,3011.1,0.6]
[1720357528175,12.52701516,3011.2,3011.1,0.6]
[1720357528379,11.32675997,3011.2,3011.1,0.6]
[1720357528575,9.25965629,3011.2,3011.1,0.6]
[1720357530211,9.25969252,3011.2,3011.1,0.6]
[1720357530508,8.1092999,3011.2,3011.1,0.6]
[1720357530709,9.25967335,3011.2,3011.1,0.6]
[1720357530878,12.5262249,3011.2,3011.1,0.6]
[1720357531084,9.64924854,3011.2,3011.1,0.6]
[1720357531402,9.25967335,3011.2,3011.1,0.6]
[1720357532006,9.38412645,3011.2,3011.1,0.6]
[1720357534016,9.3841317,3011.2,3011.1,0.6]
[1720357535189,17.97462755,3011.2,3011.1,0.6]
[1720357535388,15.90916466,3011.2,3011.1,0.6]
[1720357535590,17.97392954,3011.2,3011.1,0.6]
[1720357536009,20.29857954,3011.2,3011.1,0.6]
[1720357536722,20.29860469,3011.2,3011.1,0.6]
[1720357537082,17.77259576,3011.2,3011.1,0.6]
[1720357537287,19.73391461,3011.2,3011.1,0.6]
[1720357539898,18.23391461,3011.2,3011.1,0.6]
[1720357540099,20.29736174,3011.2,3011.1,0.6]
[1720357540329,18.33604289,3011.2,3011.1,0.6]
[1720357540627,17.03352967,3011.2,3011.1,0.6]
[1720357540830,17.03346875,3011.2,3011.1,0.6]
[1720357541199,19.90780294,3011.2,3011.1,0.6]
[1720357542044,20.29721915,3011.2,3011.1,0.6]
[1720357543132,19.90780294,3011.2,3011.1,0.6]
[1720357543703,19.90787253,3011.2,3011.1,0.6]
[1720357544643,19.09696772,3011.2,3011.1,0.6]
[1720357544837,19.90785994,3011.2,3011.1,0.6]
[1720357545209,20.29732957,3011.2,3011.1,0.6]
[1720357545923,19.90785994,3011.2,3011.1,0.6]
[1720357546754,15.883053,3011.2,3011.1,0.6]
[1720357546920,16.27251622,3011.2,3011.1,0.6]
[1720357547117,20.29691945,3011.2,3011.1,0.6]
[1720357547312,20.29693887,3011.2,3011.1,0.6]
[1720357548144,19.48600608,3011.2,3011.1,0.6]
[1720357548510,20.29690466,3011.2,3011.1,0.6]
[1720357549132,21.79690466,3011.2,3011.1,0.6]
[1720357549547,19.73392257,3011.2,3011.1,0.6]
[1720357549864,19.73392257,3011.2,3011.1,0.16]
[1720357550342,19.73403327,3011.2,3011.1,0.16]
[1720357551956,19.72742311,3011.2,3011.1,0.16]
[1720357552449,18.22742311,3011.2,3011.1,0.16]
[1720357552665,12.79531701,3011.2,3011.1,0.16]
[1720357552947,11.85653409,3011.2,3011.1,0.16]
[1720357553646,11.85642143,3011.2,3011.1,0.16]
[1720357553835,11.09541073,3011.2,3011.1,0.16]
[1720357554038,12.79584905,3011.2,3011.1,0.16]
[1720357554342,6.03639132,3011.2,3011.1,0.16]
[1720357554543,1.92780955,3011.2,3011.1,0.16]
[1720357554744,1.35814847,3011.2,3010.9,2.4213]
[1720357554933,0.20784037,3011.2,3011.1,0.2]
[1720357555144,1.35810759,3011.2,3011.1,0.2]
[1720357555313,1.15026722,3011.2,3011.1,0.2]
[1720357555644,1.35796976,3011.2,3011.1,0.2]
[1720357556714,0.20770254,3011.2,3011.1,0.2]
[1720357557083,1.15019,3011.3,3011.1,0.2]
[1720357557218,1.35787872,3011.2,3011.1,0.2]
[1720357559045,1.35787872,3011.2,3011.1,0.4]
[1720357559247,7.18231111,3011.2,3011.1,0.4]
[1720357560132,1.35799449,3011.2,3011.1,0.4]
[1720357560919,1.35799449,3011.2,3011.1,2.7391]
[1720357561667,0.20768872,3011.2,3011.1,2.7391]
[1720357562020,2.18086192,3011.5,3011.1,2.7391]
[1720357562268,0.2077631,3011.2,3011.1,2.7391]
[1720357562465,3.90268622,3011.5,3011.1,2.7391]
[1720357562662,0.2077631,3011.2,3011.1,2.7391]
[1720357562873,5.62476447,3011.5,3011.1,2.7391]
[1720357563170,0.2077631,3011.2,3011.1,2.9391]
[1720357563393,1.15014261,3011.2,3011.1,0.6]
[1720357563518,4.85990571,3011.2,3011.1,0.6]
[1720357563717,6.58198396,3011.2,3011.1,0.6]
[1720357563947,3.7097631,3011.2,3011.1,0.6]
[1720357564145,6.95239436,3011.2,3011.1,0.6]
[1720357564343,5.23104503,3011.2,3011.1,0.6]
[1720357565794,0.57873941,3011.2,3011.1,0.6]
[1720357565958,1.92981822,3011.2,3011.1,0.6]
[1720357566270,0.2077631,3011.2,3011.1,2.9391]
[1720357567154,5.62474134,3011.5,3011.1,3.1391]
[1720357567352,0.20781728,3011.2,3011.1,3.1391]
[1720357567543,5.62474134,3011.5,3011.1,3.1391]
[1720357567855,1.150139,3011.4,3011.1,3.1391]
[1720357568030,0.20804006,3011.4,3011.1,3.1391]
[1720357571167,0.20804006,3011.4,3011.1,3.3391]
[1720357573330,0.4010265,3011.4,3011.1,3.3391]
[1720357577163,3.9030265,3011.4,3011.1,1.0]
[1720357577340,1.15020082,3011.3,3011.1,1.0]
[1720357577564,5.62305199,3011.4,3011.1,1.0]
[1720357577871,1.15022226,3011.3,3011.1,1.0]
[1720357578056,0.48452087,3011.2,3011.1,1.0]
[1720357578448,0.6925555,3011.2,3011.1,1.0]
[1720357578651,1.84281626,3011.2,3011.1,1.0]
[1720357578850,1.8428324,3011.2,3011.1,1.0]
[1720357582151,1.8428246,3011.2,3011.1,1.0]
[1720357583177,3.56277033,3011.2,3011.1,1.0]
[1720357584296,1.8428246,3011.2,3011.1,1.0]
[1720357584447,3.56277033,3011.2,3011.1,1.0]
[1720357585074,7.61477033,3011.2,3011.1,1.0]
[1720357585345,4.7445555,3011.2,3011.1,1.0]
[1720357585559,5.89491845,3011.2,3011.1,1.0]
[1720357585991,9.0303751,3011.2,3011.1,1.0]
[1720357586280,16.58961866,3011.2,3011.1,1.0]
[1720357586598,18.08961866,3011.2,3011.1,1.0]
[1720357586807,20.49744153,3011.2,3011.1,1.0]
[1720357587968,18.08961866,3011.2,3011.1,1.0]
[1720357588592,16.93939157,3011.2,3011.1,1.0]
[1720357588765,18.0899064,3011.2,3011.1,1.0]
[1720357589754,20.49748669,3011.2,3011.1,1.0]
[1720357590088,22.91678669,3011.2,3011.1,1.0]
[1720357591192,17.5092064,3011.2,3011.1,1.0]
[1720357591799,21.41678669,3011.2,3011.1,1.0]
[1720357591977,21.4163507,3011.2,3011.1,1.0]
[1720357593676,22.9163507,3011.2,3011.1,1.0]
[1720357594480,20.50921461,3011.2,3011.1,1.0]
[1720357594791,22.91626553,3011.2,3011.1,1.0]
[1720357594978,20.95479998,3011.2,3011.1,1.0]
[1720357595179,22.91627004,3011.2,3011.1,1.0]
[1720357595380,18.54774906,3011.2,3011.1,1.0]
[1720357595579,22.91615046,3011.2,3011.1,1.0]
[1720357596158,22.91630974,3011.2,3011.1,1.0]
[1720357598475,22.91597491,3011.2,3011.1,1.0]
[1720357598679,22.91598216,3011.2,3011.1,1.0]
[1720357600367,19.0092369,3011.2,3011.1,1.0]
[1720357600675,17.5092369,3011.2,3011.1,1.0]
[1720357600862,20.5092369,3011.2,3011.1,1.0]
[1720357601066,22.69009882,3011.2,3011.1,1.0]
[1720357601269,6.502,3010.6,3010.3,2.376]
[1720357601599,3.6502,3010.6,3010.3,2.376]
[1720357601785,0.2074817,3010.5,3010.3,2.376]
[1720357602576,1.71846694,3010.9,3010.3,2.376]
[1720357602784,0.20749857,3010.4,3010.3,2.376]
[1720357602968,3.0,3011.0,3010.3,2.376]
[1720357603169,0.20749857,3010.4,3010.3,2.376]
[1720357603386,3.0,3011.0,3010.3,2.376]
[1720357603592,0.2075822,3010.4,3010.3,2.376]
[1720357603786,0.47184669,3010.9,3010.3,2.376]
[1720357604099,1.15039452,3010.8,3010.3,2.376]
[1720357604300,0.20759324,3010.8,3010.3,2.376]
[1720357604884,3.70959324,3010.8,3010.3,2.376]
[1720357605101,1.56859599,3010.7,3010.3,2.376]
[1720357605400,0.41814399,3010.7,3010.3,2.376]
[1720357605607,0.20758879,3010.6,3010.3,2.376]
[1720357606099,3.0,3011.0,3010.3,2.376]
[1720357606302,0.20758379,3010.5,3010.3,2.376]
[1720357606503,4.71854077,3011.0,3010.3,2.376]
[1720357606704,1.82983397,3010.9,3010.3,2.376]
[1720357607010,3.41894534,3010.8,3010.3,2.376]
[1720357607175,1.15040457,3010.7,3010.3,2.376]
[1720357607375,1.3579733,3010.7,3010.3,2.376]
[1720357607588,1.15040457,3010.6,3010.3,2.376]
[1720357607993,0.20758379,3010.5,3010.3,2.376]
[1720357608679,3.0,3011.0,3010.3,2.376]
[1720357608680,4.71851208,3011.0,3010.3,2.376]
[1720357608880,0.20757862,3010.4,3010.3,2.376]
[1720357609080,6.02374181,3011.0,3010.3,2.376]
[1720357609276,0.20703195,3010.4,3010.3,2.376]
[1720357609478,6.02374181,3011.0,3010.3,2.376]
[1720357609677,0.20703195,3010.4,3010.3,2.376]
[1720357609908,0.60237418,3010.9,3010.3,2.376]
[1720357610112,0.20703195,3010.4,3010.3,2.376]
[1720357610276,0.60237418,3010.9,3010.3,2.376]
[1720357610603,0.20703195,3010.4,3010.3,2.376]
[1720357610806,0.60237418,3010.9,3010.3,2.376]
[1720357611109,1.150382,3010.8,3010.3,2.376]
[1720357611309,1.150382,3010.7,3010.3,2.376]
[1720357611506,0.20702609,3010.8,3010.3,2.376]
[1720357611710,0.20703391,3010.6,3010.3,2.376]
[1720357612041,0.20715658,3010.7,3010.3,2.376]
[1720357612207,0.20714999,3010.5,3010.3,2.376]
[1720357612545,0.20716399,3010.4,3010.3,2.376]
[1720357612976,3.0,3011.0,3010.3,2.376]
[1720357613178,0.20716399,3010.4,3010.3,2.376]
[1720357613397,0.82208869,3010.9,3010.3,2.376]
[1720357613614,0.20714669,3010.4,3010.3,2.376]
[1720357613922,0.2071415,3010.4,3010.3,2.376]
[1720357614301,1.1504589,3010.4,3010.3,2.376]
[1720357614497,1.3576004,3010.4,3010.3,2.376]
[1720357614699,1.15049947,3010.4,3010.3,2.376]
[1720357614917,1.35073625,3010.4,3010.3,2.376]
[1720357616236,2.2503,3010.2,3007.1,2.53683448]
[1720357616437,1.5,3006.5,3004.9,1.6090015]